[Event "Titled Tuesday Blitz February 22 Late 2022"]
[White "Tomiello, Mateus Costamilan"]
[Black "Jaferian, Koosha"]
[WhiteFideId "22701958"]
[BlackFideId "12507440"]
[WhiteElo "1975"]
[BlackElo "2027"]
[Result "1-0"]
[Round "09"]
[TimeControl "180+1"]
[Date "2022.02.23"]
[WhiteClock "0:00:41"]
[BlackClock "0:00:09"]

1. e4 {[%clk 0:03:00]}  c6 {[%clk 0:03:00]} 2. d4 {[%clk 0:02:59]}  d5 {[%clk 0:03:01]} 3. Nc3 {[%clk 0:03:00]}  dxe4 {[%clk 0:03:01]} 4. Nxe4 {[%clk 0:03:00]}  Bf5 {[%clk 0:03:02]} 5. Ng3 {[%clk 0:03:01]}  Bg6 {[%clk 0:03:01]} 6. Nh3 {[%clk 0:02:54]}  e6 {[%clk 0:03:01]} 7. Nf4 {[%clk 0:02:53]}  Qh4 {[%clk 0:03:01]} 8. Bc4 {[%clk 0:02:52]}  Nf6 {[%clk 0:03:01]} 9. O-O {[%clk 0:02:49]}  Bd6 {[%clk 0:02:58]} 10. Qf3 {[%clk 0:02:48]}  Nbd7 {[%clk 0:02:54]} 11. Bxe6 {[%clk 0:02:30]}  fxe6 {[%clk 0:02:39]} 12. Nxe6 {[%clk 0:02:31]}  Qg4 {[%clk 0:02:33]} 13. Qe3 {[%clk 0:01:55]}  Kf7 {[%clk 0:02:21]} 14. Ng5+ {[%clk 0:01:50]}  Kf8 {[%clk 0:02:13]} 15. h3 {[%clk 0:01:45]}  Qh4 {[%clk 0:02:00]} 16. Qb3 {[%clk 0:01:39]}  Re8 {[%clk 0:01:41]} 17. Nf5 {[%clk 0:01:36]}  Qxg5 {[%clk 0:01:27]} 18. Bxg5 {[%clk 0:01:35]}  Bxf5 {[%clk 0:01:27]} 19. Qxb7 {[%clk 0:01:33]}  Re7 {[%clk 0:01:18]} 20. Qc8+ {[%clk 0:01:27]}  Kf7 {[%clk 0:01:02]} 21. Qxh8 {[%clk 0:01:18]}  Re8 {[%clk 0:01:03]} 22. Qxe8+ {[%clk 0:01:13]}  Nxe8 {[%clk 0:01:04]} 23. c3 {[%clk 0:01:10]}  Nc7 {[%clk 0:01:04]} 24. Rfe1 {[%clk 0:01:09]}  Ne6 {[%clk 0:01:04]} 25. Bh4 {[%clk 0:01:07]}  Nb6 {[%clk 0:01:00]} 26. Bg3 {[%clk 0:01:07]}  Be7 {[%clk 0:00:58]} 27. b3 {[%clk 0:01:07]}  Bf6 {[%clk 0:00:55]} 28. Be5 {[%clk 0:01:07]}  Bg5 {[%clk 0:00:52]} 29. c4 {[%clk 0:01:05]}  Bf6 {[%clk 0:00:38]} 30. Bxf6 {[%clk 0:00:59]}  Kxf6 {[%clk 0:00:39]} 31. Rad1 {[%clk 0:00:59]}  Nf4 {[%clk 0:00:32]} 32. Kh2 {[%clk 0:00:55]}  h5 {[%clk 0:00:31]} 33. h4 {[%clk 0:00:54]}  Nc8 {[%clk 0:00:21]} 34. g3 {[%clk 0:00:54]}  Ng6 {[%clk 0:00:21]} 35. Re8 {[%clk 0:00:50]}  Nd6 {[%clk 0:00:20]} 36. Ra8 {[%clk 0:00:50]}  Ne4 {[%clk 0:00:19]} 37. Kg2 {[%clk 0:00:47]}  Nc3 {[%clk 0:00:20]} 38. Re1 {[%clk 0:00:46]}  c5 {[%clk 0:00:19]} 39. d5 {[%clk 0:00:42]}  Be4+ {[%clk 0:00:19]} 40. f3 {[%clk 0:00:42]}  Bf5 {[%clk 0:00:13]} 41. Rxa7 {[%clk 0:00:42]}  Ne5 {[%clk 0:00:13]} 42. Ra6+ {[%clk 0:00:41]}  Nc6 {[%clk 0:00:09]} 43. Rxc6+ {[%clk 0:00:41]} 1-0


[Site "https://www.chess.com"]

[Event "Titled Tuesday Blitz February 22 Late 2022"]
[White "Toncheva, Nadya"]
[Black "Van den Dikkenberg, Erik"]
[WhiteFideId "2924056"]
[BlackFideId "1005880"]
[WhiteElo "1920"]
[BlackElo "2118"]
[Result "1-0"]
[Round "09"]
[TimeControl "180+1"]
[Date "2022.02.23"]
[WhiteClock "0:02:30"]
[BlackClock "0:01:54"]

1. e4 {[%clk 0:03:00]}  c5 {[%clk 0:02:59]} 2. Nf3 {[%clk 0:02:58]}  d6 {[%clk 0:02:59]} 3. d4 {[%clk 0:02:59]}  cxd4 {[%clk 0:03:00]} 4. Nxd4 {[%clk 0:03:00]}  Nf6 {[%clk 0:03:00]} 5. f3 {[%clk 0:03:00]}  a6 {[%clk 0:03:01]} 6. c4 {[%clk 0:03:01]}  e6 {[%clk 0:02:59]} 7. Nc3 {[%clk 0:03:00]}  Be7 {[%clk 0:03:00]} 8. Be3 {[%clk 0:03:00]}  O-O {[%clk 0:03:00]} 9. Be2 {[%clk 0:03:00]}  Nbd7 {[%clk 0:02:58]} 10. O-O {[%clk 0:03:00]}  Qc7 {[%clk 0:02:58]} 11. Qd2 {[%clk 0:02:57]}  b6 {[%clk 0:02:59]} 12. a4 {[%clk 0:02:53]}  Bb7 {[%clk 0:02:58]} 13. a5 {[%clk 0:02:49]}  bxa5 {[%clk 0:02:57]} 14. Nb3 {[%clk 0:02:49]}  a4 {[%clk 0:02:17]} 15. Rxa4 {[%clk 0:02:47]}  Bc6 {[%clk 0:02:15]} 16. Raa1 {[%clk 0:02:47]}  a5 {[%clk 0:02:13]} 17. Nb5 {[%clk 0:02:36]}  Qb7 {[%clk 0:02:02]} 18. Nxa5 {[%clk 0:02:31]}  Qb8 {[%clk 0:01:54]} 19. Nxc6 {[%clk 0:02:30]} 1-0


[Site "https://www.chess.com"]

[Event "Titled Tuesday Blitz February 22 Late 2022"]
[White "Van Foreest, Jorden"]
[Black "Dubov, Daniil"]
[WhiteFideId "1039784"]
[BlackFideId "24126055"]
[WhiteElo "2609"]
[BlackElo "2791"]
[Result "1/2-1/2"]
[Round "09"]
[TimeControl "180+1"]
[Date "2022.02.22"]
[WhiteClock "0:00:03"]
[BlackClock "0:00:04"]

1. Nf3 {[%clk 0:03:00]}  d5 {[%clk 0:02:56]} 2. d4 {[%clk 0:03:00]}  Nf6 {[%clk 0:02:55]} 3. Bf4 {[%clk 0:03:00]}  Bf5 {[%clk 0:02:54]} 4. e3 {[%clk 0:02:59]}  e6 {[%clk 0:02:54]} 5. Bd3 {[%clk 0:03:00]}  Bxd3 {[%clk 0:02:48]} 6. cxd3 {[%clk 0:02:59]}  Bd6 {[%clk 0:02:48]} 7. Nc3 {[%clk 0:02:52]}  Bxf4 {[%clk 0:02:44]} 8. exf4 {[%clk 0:02:53]}  O-O {[%clk 0:02:44]} 9. O-O {[%clk 0:02:53]}  Nc6 {[%clk 0:02:43]} 10. Rc1 {[%clk 0:02:43]}  Ne7 {[%clk 0:02:40]} 11. Ne2 {[%clk 0:02:43]}  Ne8 {[%clk 0:02:33]} 12. Qb3 {[%clk 0:02:39]}  Nd6 {[%clk 0:02:32]} 13. Ng3 {[%clk 0:02:29]}  Ng6 {[%clk 0:02:24]} 14. Ne2 {[%clk 0:02:29]}  Ne7 {[%clk 0:02:23]} 15. Rfe1 {[%clk 0:02:23]}  a5 {[%clk 0:02:17]} 16. Ng3 {[%clk 0:02:23]}  a4 {[%clk 0:02:14]} 17. Qb4 {[%clk 0:02:21]}  Ng6 {[%clk 0:02:12]} 18. Qd2 {[%clk 0:02:18]}  Ne7 {[%clk 0:02:09]} 19. Rc2 {[%clk 0:02:02]}  c6 {[%clk 0:02:05]} 20. Qb4 {[%clk 0:01:50]}  Qc7 {[%clk 0:01:48]} 21. h4 {[%clk 0:01:43]}  Nef5 {[%clk 0:01:34]} 22. Nxf5 {[%clk 0:01:42]}  Nxf5 {[%clk 0:01:34]} 23. g3 {[%clk 0:01:40]}  Qa5 {[%clk 0:01:29]} 24. Qxa5 {[%clk 0:01:27]}  Rxa5 {[%clk 0:01:28]} 25. g4 {[%clk 0:01:19]}  Nd6 {[%clk 0:01:19]} 26. h5 {[%clk 0:01:19]}  h6 {[%clk 0:01:09]} 27. Kg2 {[%clk 0:01:19]}  Rb5 {[%clk 0:01:07]} 28. Ree2 {[%clk 0:01:05]}  Ra8 {[%clk 0:01:01]} 29. Rc3 {[%clk 0:01:03]}  a3 {[%clk 0:00:54]} 30. bxa3 {[%clk 0:00:50]}  Rba5 {[%clk 0:00:54]} 31. f5 {[%clk 0:00:47]}  exf5 {[%clk 0:00:49]} 32. g5 {[%clk 0:00:42]}  hxg5 {[%clk 0:00:38]} 33. Nxg5 {[%clk 0:00:43]}  Nb5 {[%clk 0:00:37]} 34. Rc1 {[%clk 0:00:43]}  f6 {[%clk 0:00:15]} 35. Ne6 {[%clk 0:00:42]}  Re8 {[%clk 0:00:12]} 36. Rce1 {[%clk 0:00:23]}  Rxa3 {[%clk 0:00:11]} 37. Nf4 {[%clk 0:00:19]}  Rxe2 {[%clk 0:00:11]} 38. Rxe2 {[%clk 0:00:20]}  Nxd4 {[%clk 0:00:07]} 39. Re7 {[%clk 0:00:19]}  Rxa2 {[%clk 0:00:06]} 40. Rxb7 {[%clk 0:00:18]}  Ra8 {[%clk 0:00:04]} 41. Rb4 {[%clk 0:00:17]}  c5 {[%clk 0:00:03]} 42. Rb7 {[%clk 0:00:17]}  Kh7 {[%clk 0:00:03]} 43. Nxd5 {[%clk 0:00:16]}  Kh6 {[%clk 0:00:04]} 44. Nf4 {[%clk 0:00:17]}  Re8 {[%clk 0:00:04]} 45. Rc7 {[%clk 0:00:16]}  Ne6 {[%clk 0:00:04]} 46. Nxe6 {[%clk 0:00:16]}  Rxe6 {[%clk 0:00:05]} 47. Rxc5 {[%clk 0:00:16]}  Kg5 {[%clk 0:00:04]} 48. Kf3 {[%clk 0:00:15]}  Rd6 {[%clk 0:00:04]} 49. Ke3 {[%clk 0:00:15]}  Kxh5 {[%clk 0:00:03]} 50. Rxf5+ {[%clk 0:00:15]}  Kg4 {[%clk 0:00:04]} 51. Rf4+ {[%clk 0:00:14]}  Kg5 {[%clk 0:00:04]} 52. d4 {[%clk 0:00:13]}  f5 {[%clk 0:00:04]} 53. Rf3 {[%clk 0:00:12]}  Re6+ {[%clk 0:00:04]} 54. Kd3 {[%clk 0:00:12]}  f4 {[%clk 0:00:04]} 55. d5 {[%clk 0:00:11]}  Re1 {[%clk 0:00:04]} 56. Kd4 {[%clk 0:00:11]}  Kf5 {[%clk 0:00:04]} 57. Rd3 {[%clk 0:00:12]}  Re8 {[%clk 0:00:03]} 58. Kc5 {[%clk 0:00:11]}  g5 {[%clk 0:00:03]} 59. d6 {[%clk 0:00:11]}  g4 {[%clk 0:00:04]} 60. Kd5 {[%clk 0:00:09]}  Re5+ {[%clk 0:00:01]} 61. Kc6 {[%clk 0:00:09]}  Re8 {[%clk 0:00:02]} 62. d7 {[%clk 0:00:07]}  Rh8 {[%clk 0:00:02]} 63. d8=Q {[%clk 0:00:07]}  Rxd8 {[%clk 0:00:02]} 64. Rxd8 {[%clk 0:00:07]}  Ke4 {[%clk 0:00:03]} 65. Rf8 {[%clk 0:00:04]}  g3 {[%clk 0:00:02]} 66. fxg3 {[%clk 0:00:03]}  fxg3 {[%clk 0:00:03]} 67. Rg8 {[%clk 0:00:04]}  Kf3 {[%clk 0:00:04]} 68. Rxg3+ {[%clk 0:00:03]}  Kxg3 {[%clk 0:00:04]} 1/2-1/2


[Site "https://www.chess.com"]

[Event "Titled Tuesday Blitz February 22 Late 2022"]
[White "Vargas Pereda, Jesus Manue"]
[Black "Bauer, Thomas"]
[WhiteFideId "5115710"]
[BlackFideId "1639293"]
[WhiteElo "1760"]
[BlackElo "2220"]
[Result "0-1"]
[Round "09"]
[TimeControl "180+1"]
[Date "2022.02.23"]
[WhiteClock "0:01:36"]
[BlackClock "0:02:06"]

1. d4 {[%clk 0:03:00]}  e6 {[%clk 0:02:50]} 2. Nf3 {[%clk 0:02:58]}  d5 {[%clk 0:02:42]} 3. Bf4 {[%clk 0:02:56]}  Bd6 {[%clk 0:02:39]} 4. e3 {[%clk 0:02:54]}  Bxf4 {[%clk 0:02:38]} 5. exf4 {[%clk 0:02:54]}  Ne7 {[%clk 0:02:38]} 6. Nbd2 {[%clk 0:02:52]}  b6 {[%clk 0:02:37]} 7. Bd3 {[%clk 0:02:51]}  Ba6 {[%clk 0:02:37]} 8. Qe2 {[%clk 0:02:43]}  Qc8 {[%clk 0:02:37]} 9. c3 {[%clk 0:02:42]}  Bxd3 {[%clk 0:02:37]} 10. Qxd3 {[%clk 0:02:41]}  Qa6 {[%clk 0:02:38]} 11. Qxa6 {[%clk 0:02:34]}  Nxa6 {[%clk 0:02:39]} 12. Ke2 {[%clk 0:02:27]}  f6 {[%clk 0:02:38]} 13. Rhe1 {[%clk 0:02:23]}  Kd7 {[%clk 0:02:37]} 14. Kd3 {[%clk 0:02:23]}  Rhe8 {[%clk 0:02:37]} 15. a3 {[%clk 0:02:19]}  c5 {[%clk 0:02:35]} 16. b4 {[%clk 0:02:09]}  Rac8 {[%clk 0:02:34]} 17. Rac1 {[%clk 0:02:02]}  Nc7 {[%clk 0:02:30]} 18. dxc5 {[%clk 0:01:55]}  bxc5 {[%clk 0:02:27]} 19. a4 {[%clk 0:01:50]}  c4+ {[%clk 0:02:24]} 20. Kd4 {[%clk 0:01:43]}  Nf5+ {[%clk 0:02:22]} 21. Kc5 {[%clk 0:01:38]}  Rb8 {[%clk 0:02:06]} 22. b5 {[%clk 0:01:37]}  Na6+ {[%clk 0:02:06]} 23. bxa6 {[%clk 0:01:36]}  Rec8# {[%clk 0:02:06]} 0-1


[Site "https://www.chess.com"]

[Event "Titled Tuesday Blitz February 22 Late 2022"]
[White "Vidit, Santosh Gujrathi"]
[Black "Kamsky, Gata"]
[WhiteFideId "5029465"]
[BlackFideId "2000024"]
[WhiteElo "2654"]
[BlackElo "2645"]
[Result "1-0"]
[Round "09"]
[TimeControl "180+1"]
[Date "2022.02.22"]
[WhiteClock "0:01:40"]
[BlackClock "0:00:33"]

1. d4 {[%clk 0:03:00]}  d5 {[%clk 0:02:58]} 2. c4 {[%clk 0:03:01]}  c6 {[%clk 0:02:58]} 3. Nf3 {[%clk 0:03:01]}  Nf6 {[%clk 0:02:53]} 4. Nc3 {[%clk 0:03:01]}  a6 {[%clk 0:02:53]} 5. cxd5 {[%clk 0:03:00]}  cxd5 {[%clk 0:02:43]} 6. Bf4 {[%clk 0:03:00]}  e6 {[%clk 0:02:42]} 7. e3 {[%clk 0:03:00]}  Bd6 {[%clk 0:02:42]} 8. Bxd6 {[%clk 0:02:52]}  Qxd6 {[%clk 0:02:41]} 9. Ne5 {[%clk 0:02:52]}  Bd7 {[%clk 0:02:12]} 10. Bd3 {[%clk 0:02:51]}  Nc6 {[%clk 0:02:11]} 11. f4 {[%clk 0:02:51]}  Nb4 {[%clk 0:02:10]} 12. Bb1 {[%clk 0:02:49]}  O-O {[%clk 0:01:48]} 13. O-O {[%clk 0:02:49]}  Rfc8 {[%clk 0:01:40]} 14. g4 {[%clk 0:02:46]}  Be8 {[%clk 0:01:36]} 15. g5 {[%clk 0:02:43]}  Nd7 {[%clk 0:01:36]} 16. Qf3 {[%clk 0:02:26]}  Rc7 {[%clk 0:01:27]} 17. Qh3 {[%clk 0:02:23]}  Nf8 {[%clk 0:01:26]} 18. Rf3 {[%clk 0:02:05]}  Rac8 {[%clk 0:01:20]} 19. Qh4 {[%clk 0:02:01]}  g6 {[%clk 0:00:58]} 20. Ng4 {[%clk 0:01:48]}  Nd7 {[%clk 0:00:44]} 21. Rh3 {[%clk 0:01:47]}  h5 {[%clk 0:00:43]} 22. gxh6 {[%clk 0:01:48]}  Kh7 {[%clk 0:00:33]} 23. Nf6+ {[%clk 0:01:39]}  Nxf6 {[%clk 0:00:33]} 24. Qxf6 {[%clk 0:01:40]}  Qf8 {[%clk 0:00:33]} 25. Bxg6+ {[%clk 0:01:40]} 1-0


[Site "https://www.chess.com"]

[Event "Titled Tuesday Blitz February 22 Late 2022"]
[White "Virtanen, Teemu"]
[Black "Vlassov, Nikolai"]
[WhiteFideId "509850"]
[BlackFideId "4103360"]
[WhiteElo "1926"]
[BlackElo "2407"]
[Result "1-0"]
[Round "09"]
[TimeControl "180+1"]
[Date "2022.02.23"]
[WhiteClock "0:00:08"]
[BlackClock "0:00:04"]

1. c4 {[%clk 0:03:00]}  f5 {[%clk 0:02:59]} 2. Nc3 {[%clk 0:03:00]}  Nf6 {[%clk 0:02:59]} 3. g3 {[%clk 0:03:00]}  e5 {[%clk 0:02:59]} 4. Bg2 {[%clk 0:03:01]}  Nc6 {[%clk 0:02:59]} 5. e3 {[%clk 0:03:01]}  h6 {[%clk 0:02:59]} 6. d3 {[%clk 0:03:00]}  g5 {[%clk 0:02:59]} 7. h3 {[%clk 0:02:59]}  Bg7 {[%clk 0:02:59]} 8. Nge2 {[%clk 0:02:59]}  O-O {[%clk 0:02:59]} 9. O-O {[%clk 0:02:59]}  d6 {[%clk 0:02:59]} 10. f4 {[%clk 0:02:59]}  exf4 {[%clk 0:02:55]} 11. exf4 {[%clk 0:02:56]}  g4 {[%clk 0:02:51]} 12. h4 {[%clk 0:02:54]}  Nh5 {[%clk 0:02:50]} 13. Kh2 {[%clk 0:02:54]}  Ne7 {[%clk 0:02:48]} 14. Be3 {[%clk 0:02:49]}  Ng6 {[%clk 0:02:48]} 15. Bf2 {[%clk 0:02:44]}  c6 {[%clk 0:02:44]} 16. Qb3 {[%clk 0:02:38]}  Kh7 {[%clk 0:02:41]} 17. Rae1 {[%clk 0:02:36]}  Rf7 {[%clk 0:02:25]} 18. Rh1 {[%clk 0:01:55]}  Bf6 {[%clk 0:02:14]} 19. Nd4 {[%clk 0:01:46]}  Ngxf4 {[%clk 0:01:54]} 20. gxf4 {[%clk 0:01:32]}  g3+ {[%clk 0:01:54]} 21. Bxg3 {[%clk 0:01:29]}  Nxg3 {[%clk 0:01:48]} 22. Kxg3 {[%clk 0:01:14]}  Bxd4 {[%clk 0:01:47]} 23. Kf3 {[%clk 0:01:01]}  Rg7 {[%clk 0:01:39]} 24. Ne2 {[%clk 0:00:59]}  Bf6 {[%clk 0:01:32]} 25. h5 {[%clk 0:00:55]}  Bd7 {[%clk 0:01:20]} 26. d4 {[%clk 0:00:50]}  Qa5 {[%clk 0:01:12]} 27. Qc3 {[%clk 0:00:39]}  Qb6 {[%clk 0:01:02]} 28. Qd3 {[%clk 0:00:17]}  Rag8 {[%clk 0:00:57]} 29. Bh3 {[%clk 0:00:16]}  Qa5 {[%clk 0:00:49]} 30. b4 {[%clk 0:00:13]}  Qxb4 {[%clk 0:00:41]} 31. Bxf5+ {[%clk 0:00:13]}  Kh8 {[%clk 0:00:42]} 32. Bxd7 {[%clk 0:00:12]}  Rxd7 {[%clk 0:00:41]} 33. Reg1 {[%clk 0:00:12]}  Rdg7 {[%clk 0:00:36]} 34. Rg6 {[%clk 0:00:11]}  Rxg6 {[%clk 0:00:31]} 35. hxg6 {[%clk 0:00:12]}  Bg7 {[%clk 0:00:32]} 36. Ng3 {[%clk 0:00:13]}  Qb2 {[%clk 0:00:28]} 37. Nf5 {[%clk 0:00:13]}  Bf8 {[%clk 0:00:14]} 38. Nxh6 {[%clk 0:00:11]}  Rxg6 {[%clk 0:00:04]} 39. Qxg6 {[%clk 0:00:08]}  Qc3+ {[%clk 0:00:04]} 40. Kg4 {[%clk 0:00:08]} 1-0


[Site "https://www.chess.com"]

[Event "Titled Tuesday Blitz February 22 Late 2022"]
[White "Zakhartsov, Vladimir"]
[Black "Zeynalli, Rashad"]
[WhiteFideId "4145097"]
[BlackFideId "13403320"]
[WhiteElo "2432"]
[BlackElo "2125"]
[Result "1-0"]
[Round "09"]
[TimeControl "180+1"]
[Date "2022.02.23"]
[WhiteClock "0:01:10"]
[BlackClock "0:00:17"]

1. e4 {[%clk 0:02:58]}  e5 {[%clk 0:02:59]} 2. Nf3 {[%clk 0:02:58]}  Nc6 {[%clk 0:02:59]} 3. Bb5 {[%clk 0:02:58]}  Nf6 {[%clk 0:02:59]} 4. d3 {[%clk 0:02:57]}  Bc5 {[%clk 0:02:59]} 5. Bxc6 {[%clk 0:02:55]}  bxc6 {[%clk 0:02:47]} 6. Nxe5 {[%clk 0:02:46]}  d5 {[%clk 0:02:46]} 7. d4 {[%clk 0:02:44]}  Bb6 {[%clk 0:02:30]} 8. Nxc6 {[%clk 0:02:21]}  Qd6 {[%clk 0:02:24]} 9. e5 {[%clk 0:02:22]}  Qxc6 {[%clk 0:02:22]} 10. exf6 {[%clk 0:02:22]}  Qxf6 {[%clk 0:02:23]} 11. Be3 {[%clk 0:02:19]}  Ba6 {[%clk 0:02:15]} 12. Nc3 {[%clk 0:02:15]}  c6 {[%clk 0:02:12]} 13. Ne2 {[%clk 0:02:15]}  O-O {[%clk 0:02:09]} 14. c3 {[%clk 0:02:13]}  Bc7 {[%clk 0:02:01]} 15. O-O {[%clk 0:02:11]}  Rfe8 {[%clk 0:01:54]} 16. Re1 {[%clk 0:02:11]}  Rab8 {[%clk 0:01:49]} 17. b3 {[%clk 0:02:06]}  Re7 {[%clk 0:01:11]} 18. Ng3 {[%clk 0:01:57]}  Rbe8 {[%clk 0:01:10]} 19. Qg4 {[%clk 0:01:53]}  Bc8 {[%clk 0:01:09]} 20. Qh5 {[%clk 0:01:48]}  g6 {[%clk 0:01:06]} 21. Qh6 {[%clk 0:01:47]}  Bf4 {[%clk 0:01:01]} 22. Nh5 {[%clk 0:01:43]}  Bxh2+ {[%clk 0:00:48]} 23. Kh1 {[%clk 0:01:27]}  Qh8 {[%clk 0:00:46]} 24. Kxh2 {[%clk 0:01:23]}  gxh5 {[%clk 0:00:46]} 25. Bg5 {[%clk 0:01:16]}  Re6 {[%clk 0:00:31]} 26. Bf6 {[%clk 0:01:14]}  Bd7 {[%clk 0:00:17]} 27. Qg5+ {[%clk 0:01:10]} 1-0


[Site "https://www.chess.com"]

[Event "Titled Tuesday Blitz February 22 Late 2022"]
[White "Zhou, Qiyu"]
[Black "Martin Barcelo, Carles"]
[WhiteFideId "505161"]
[BlackFideId "24561444"]
[WhiteElo "1925"]
[BlackElo "1875"]
[Result "0-1"]
[Round "09"]
[TimeControl "180+1"]
[Date "2022.02.23"]
[WhiteClock "0:00:02"]
[BlackClock "0:00:27"]

1. e4 {[%clk 0:03:00]}  c6 {[%clk 0:02:59]} 2. d4 {[%clk 0:03:00]}  d5 {[%clk 0:02:59]} 3. e5 {[%clk 0:02:59]}  c5 {[%clk 0:02:59]} 4. dxc5 {[%clk 0:02:58]}  e6 {[%clk 0:02:59]} 5. Be3 {[%clk 0:02:56]}  Ne7 {[%clk 0:02:52]} 6. c3 {[%clk 0:02:53]}  Nd7 {[%clk 0:02:50]} 7. Nf3 {[%clk 0:02:52]}  Nc6 {[%clk 0:02:49]} 8. Bb5 {[%clk 0:02:47]}  Bxc5 {[%clk 0:02:44]} 9. Bxc5 {[%clk 0:02:39]}  Nxc5 {[%clk 0:02:45]} 10. Nd4 {[%clk 0:02:39]}  Bd7 {[%clk 0:02:43]} 11. Bxc6 {[%clk 0:02:36]}  bxc6 {[%clk 0:02:43]} 12. O-O {[%clk 0:02:36]}  O-O {[%clk 0:02:42]} 13. Nd2 {[%clk 0:02:35]}  Rb8 {[%clk 0:02:40]} 14. b4 {[%clk 0:02:33]}  Na6 {[%clk 0:02:27]} 15. Qe2 {[%clk 0:02:30]}  Qc8 {[%clk 0:02:26]} 16. a3 {[%clk 0:02:14]}  c5 {[%clk 0:02:26]} 17. N4f3 {[%clk 0:02:02]}  Bb5 {[%clk 0:02:25]} 18. c4 {[%clk 0:01:59]}  dxc4 {[%clk 0:02:25]} 19. Nxc4 {[%clk 0:01:56]}  cxb4 {[%clk 0:02:25]} 20. Nfd2 {[%clk 0:01:44]}  bxa3 {[%clk 0:02:21]} 21. Rxa3 {[%clk 0:01:43]}  Qc5 {[%clk 0:01:57]} 22. Rg3 {[%clk 0:01:21]}  Rfd8 {[%clk 0:01:56]} 23. Qg4 {[%clk 0:01:14]}  Qf8 {[%clk 0:01:55]} 24. Re1 {[%clk 0:01:09]}  Bxc4 {[%clk 0:01:50]} 25. Nxc4 {[%clk 0:01:08]}  Nb4 {[%clk 0:01:42]} 26. Nd6 {[%clk 0:01:04]}  Nd5 {[%clk 0:01:40]} 27. h4 {[%clk 0:00:49]}  Rb4 {[%clk 0:01:31]} 28. Re4 {[%clk 0:00:42]}  Rdb8 {[%clk 0:01:22]} 29. h5 {[%clk 0:00:35]}  h6 {[%clk 0:01:19]} 30. Rf3 {[%clk 0:00:24]}  f5 {[%clk 0:01:01]} 31. exf6 {[%clk 0:00:23]}  Nxf6 {[%clk 0:01:01]} 32. Qxe6+ {[%clk 0:00:22]}  Kh8 {[%clk 0:00:59]} 33. Nf7+ {[%clk 0:00:20]}  Kh7 {[%clk 0:01:00]} 34. Qf5+ {[%clk 0:00:19]}  Kg8 {[%clk 0:00:59]} 35. Rxb4 {[%clk 0:00:19]}  Qxb4 {[%clk 0:00:52]} 36. Nxh6+ {[%clk 0:00:17]}  Kh8 {[%clk 0:00:45]} 37. Nf7+ {[%clk 0:00:16]}  Kg8 {[%clk 0:00:45]} 38. Ne5 {[%clk 0:00:15]}  Re8 {[%clk 0:00:38]} 39. h6 {[%clk 0:00:08]}  Qe1+ {[%clk 0:00:36]} 40. Kh2 {[%clk 0:00:07]}  Qxe5+ {[%clk 0:00:37]} 41. Qxe5 {[%clk 0:00:06]}  Rxe5 {[%clk 0:00:38]} 42. hxg7 {[%clk 0:00:06]}  Kxg7 {[%clk 0:00:38]} 43. Ra3 {[%clk 0:00:06]}  a5 {[%clk 0:00:38]} 44. f4 {[%clk 0:00:06]}  Rb5 {[%clk 0:00:36]} 45. Kh3 {[%clk 0:00:05]}  Nd5 {[%clk 0:00:31]} 46. Kg4 {[%clk 0:00:05]}  Kf6 {[%clk 0:00:30]} 47. Kf3 {[%clk 0:00:03]}  Nb6 {[%clk 0:00:27]} 48. g4 {[%clk 0:00:03]}  a4 {[%clk 0:00:28]} 49. Ke4 {[%clk 0:00:02]}  Rb4+ {[%clk 0:00:27]} 50. Kf3 {[%clk 0:00:02]}  Rb3+ {[%clk 0:00:27]} 0-1


[Site "https://www.chess.com"]

[Event "Titled Tuesday Blitz February 22 Late 2022"]
[White "Baker, Chris W"]
[Black "Avramidou, Anastasia"]
[WhiteFideId "401676"]
[BlackFideId "4239873"]
[WhiteElo "2274"]
[BlackElo "2183"]
[Result "0-1"]
[Round "10"]
[TimeControl "180+1"]
[Date "2022.02.23"]
[WhiteClock "0:00:12"]
[BlackClock "0:00:12"]

1. c4 {[%clk 0:03:00]}  Nf6 {[%clk 0:02:52]} 2. Nf3 {[%clk 0:02:58]}  g6 {[%clk 0:02:52]} 3. g3 {[%clk 0:02:58]}  Bg7 {[%clk 0:02:52]} 4. Bg2 {[%clk 0:02:58]}  O-O {[%clk 0:02:53]} 5. O-O {[%clk 0:02:58]}  d6 {[%clk 0:02:54]} 6. d4 {[%clk 0:02:58]}  Nc6 {[%clk 0:02:52]} 7. Nc3 {[%clk 0:02:58]}  a6 {[%clk 0:02:49]} 8. b3 {[%clk 0:02:48]}  Rb8 {[%clk 0:02:49]} 9. Bb2 {[%clk 0:02:48]}  b5 {[%clk 0:02:48]} 10. cxb5 {[%clk 0:02:48]}  axb5 {[%clk 0:02:49]} 11. Rc1 {[%clk 0:02:43]}  b4 {[%clk 0:02:45]} 12. Na4 {[%clk 0:02:42]}  Bb7 {[%clk 0:02:45]} 13. d5 {[%clk 0:02:36]}  Na7 {[%clk 0:02:35]} 14. e4 {[%clk 0:02:35]}  c6 {[%clk 0:02:29]} 15. Qd2 {[%clk 0:02:12]}  Nxe4 {[%clk 0:02:15]} 16. Qe3 {[%clk 0:02:08]}  Bxb2 {[%clk 0:02:05]} 17. Nxb2 {[%clk 0:02:08]}  Nc5 {[%clk 0:02:05]} 18. Qh6 {[%clk 0:01:56]}  f6 {[%clk 0:02:02]} 19. Bh3 {[%clk 0:01:53]}  Bc8 {[%clk 0:01:46]} 20. Bxc8 {[%clk 0:01:49]}  Rxc8 {[%clk 0:01:45]} 21. Nd4 {[%clk 0:01:48]}  Rf7 {[%clk 0:01:39]} 22. Ne6 {[%clk 0:01:18]}  Nxe6 {[%clk 0:01:31]} 23. dxe6 {[%clk 0:01:18]}  Rg7 {[%clk 0:01:32]} 24. Nc4 {[%clk 0:01:14]}  Nb5 {[%clk 0:01:29]} 25. Rfd1 {[%clk 0:01:11]}  Nc3 {[%clk 0:01:29]} 26. Rd2 {[%clk 0:01:05]}  Ra8 {[%clk 0:01:25]} 27. a4 {[%clk 0:01:01]}  bxa3 {[%clk 0:01:16]} 28. Nxa3 {[%clk 0:00:55]}  Ne4 {[%clk 0:01:11]} 29. Ra2 {[%clk 0:00:47]}  Nc5 {[%clk 0:01:03]} 30. Qe3 {[%clk 0:00:37]}  Qc8 {[%clk 0:00:55]} 31. Re1 {[%clk 0:00:34]}  Kh8 {[%clk 0:00:50]} 32. b4 {[%clk 0:00:34]}  Nb7 {[%clk 0:00:46]} 33. Rc2 {[%clk 0:00:28]}  Qd8 {[%clk 0:00:37]} 34. Nc4 {[%clk 0:00:26]}  Rg8 {[%clk 0:00:37]} 35. Qh6 {[%clk 0:00:20]}  Qf8 {[%clk 0:00:36]} 36. Qe3 {[%clk 0:00:18]}  Kg7 {[%clk 0:00:25]} 37. Nb6 {[%clk 0:00:17]}  Ra6 {[%clk 0:00:17]} 38. Rxc6 {[%clk 0:00:15]}  Qd8 {[%clk 0:00:17]} 39. b5 {[%clk 0:00:12]}  Na5 {[%clk 0:00:12]} 0-1


[Site "https://www.chess.com"]